fUSD/lending_fUSD_20240617
["ID","MTS","AMOUNT","RATE_DAILY","PERIOD"]
[329754457,1718649081097,-567.69,0.00022465,3]
[329754458,1718649081106,-845.29,0.00022465,3]
[329754459,1718649081115,-992.52,0.00022465,3]
[329754460,1718649081124,-713.11,0.00022465,3]
[329754461,1718649081133,-500.0,0.00022465,3]
[329754462,1718649081143,-962.25,0.00022465,3]
[329754463,1718649081154,-1256.31,0.00022465,3]
[329754464,1718649081164,-151.0,0.00022465,7]
[329754465,1718649081174,-151.0,0.00022465,7]
[329754466,1718649081184,-500.0,0.00022465,3]
[329754467,1718649081194,-500.0,0.00022465,3]
[329754468,1718649081203,-293.679135,0.00022465,7]
[329754469,1718649081212,-293.679135,0.00022465,7]
[329754470,1718649081222,-750.54,0.00022465,3]
[329754471,1718649081231,-858.91,0.00022465,3]
[329754472,1718649081241,-272.194074,0.00022465,7]
[329754473,1718649081251,-2156.49,0.00022465,3]
[329754474,1718649081260,-151.0,0.00022465,7]
[329754475,1718649081269,-293.679135,0.00022465,7]
[329754476,1718649081278,-151.0,0.00022465,7]
[329754477,1718649081288,-564.61,0.00022465,3]
[329754478,1718649081300,-500.0,0.00022465,3]
[329754479,1718649081309,-293.679143,0.00022465,7]
[329754480,1718649081318,-500.0,0.00022465,3]
[329754481,1718649081327,-272.194074,0.00022465,7]
[329754482,1718649081336,-500.0,0.00022465,3]
[329754483,1718649081345,-500.0,0.00022465,3]
[329754484,1718649081354,-758.43,0.00022465,3]
[329754485,1718649081363,-597.46505599,0.00022465,3]
[329754486,1718649081372,-969.29,0.00022465,3]
[329754487,1718649081382,-1133.27,0.00022465,3]
[329754488,1718649081392,-272.194074,0.00022465,7]
[329754489,1718649081401,-500.0,0.00022465,3]
[329754490,1718649081411,-272.194079,0.00022465,7]
[329754491,1718649081421,-500.0,0.00022465,3]
[329754492,1718649081430,-1214.57,0.00022465,3]
[329754493,1718649081439,-1807.35,0.00022465,3]
[329754494,1718649081449,-500.0,0.00022465,3]
[329754495,1718649081459,-1807.32,0.00022465,3]
[329754496,1718649081469,-500.0,0.00022465,3]
[329754497,1718649081479,-558.83,0.00022465,3]
[329754498,1718649081488,-500.0,0.00022465,3]
[329754499,1718649081681,-500.0,0.00022465,3]
[329754500,1718649081690,-977.0,0.00022465,3]
[329754501,1718649081700,-500.0,0.00022465,3]
[329754502,1718649081709,-500.0,0.00022465,3]
[329754503,1718649081718,-500.0,0.00022465,3]
[329754504,1718649081728,-1175.31,0.00022465,3]
[329754505,1718649081737,-2000.0,0.00022465,3]
[329754506,1718649081747,-609.71815453,0.00022465,3]
[329754507,1718649081756,-500.0,0.00022465,3]
[329754508,1718649081765,-500.0,0.00022465,3]
[329754509,1718649081775,-500.0,0.00022465,3]
[329754510,1718649081784,-500.0,0.00022465,3]
[329754511,1718649081795,-500.0,0.00022465,3]
[329754512,1718649081804,-689.31,0.00022465,3]
[329754513,1718649081814,-500.0,0.00022465,3]
[329754514,1718649081822,-500.0,0.00022465,3]
[329754515,1718649081831,-500.0,0.00022465,3]
[329754516,1718649081841,-500.0,0.00022465,3]
[329754517,1718649081850,-500.0,0.00022465,3]
[329754518,1718649081859,-500.0,0.00022465,3]
[329754519,1718649081868,-500.0,0.00022465,3]
[329754520,1718649081878,-913.37,0.00022465,3]
[329754521,1718649081887,-500.0,0.00022465,3]
[329754522,1718649081897,-541.35,0.00022465,3]
[329754523,1718649081910,-2204.63,0.00022465,3]
[329754524,1718649081921,-500.0,0.00022465,3]
[329754525,1718649081930,-1295.58,0.00022465,3]
[329754526,1718649081939,-500.0,0.00022465,3]
[329754527,1718649081950,-1685.19,0.00022465,3]
[329754528,1718649081959,-815.74,0.00022465,3]
[329754529,1718649081968,-1375.65,0.00022465,3]
[329754530,1718649081978,-636.0,0.00022465,3]
[329754531,1718649081988,-1000.0,0.00022465,3]
[329754532,1718649081997,-684.96,0.00022465,3]
[329754533,1718649082006,-500.0,0.00022465,3]
[329754534,1718649082015,-500.0,0.00022465,3]
[329754535,1718649082024,-500.0,0.00022465,3]
[329754536,1718649082033,-500.0,0.00022465,3]
[329754537,1718649082045,-1150.12,0.00022465,3]
[329754538,1718649082055,-1098.72,0.00022465,3]
[329754539,1718649082064,-528.28,0.00022465,3]
[329754540,1718649082073,-681.43,0.00022465,3]
[329754541,1718649082083,-500.0,0.00022465,3]
[329754542,1718649082092,-500.0,0.00022465,3]
[329754543,1718649082101,-535.53265173,0.00022465,3]
[329754544,1718649084183,-209.72734827,0.00022465,3]
[329754545,1718649084193,-1071.64,0.00022465,3]
[329754546,1718649084203,-1042.45,0.00022465,3]
[329754547,1718649084212,-1150.85,0.00022465,3]
[329754548,1718649084222,-185.46037052,0.00022465,3]
[329754549,1718649084239,-329.52962948,0.00022465,3]
[329754550,1718649084248,-367.12739978,0.00022465,3]
[329754551,1718649084266,-428.03097649,0.00021917,2]
[329754552,1718649084278,-71.96902351,0.00021917,2]
[329754553,1718649084289,-395.02260022,0.00022465,3]
[329754554,1718649084301,-204.78925627,0.00022465,3]
[329754555,1718649084312,-295.21074373,0.00022465,3]
[329754556,1718649084321,-150.93666824,0.00022465,3]
[329754557,1718649084334,-349.06333176,0.00022465,3]
[329754558,1718649084344,-500.0,0.00022465,3]
[329754559,1718649084354,-458.64422351,0.00022465,3]
[329754560,1718649084569,-197.46491076,0.00021817,2]
[329754561,1718649084579,-500.0,0.00021917,2]
[329754562,1718649084589,-500.0,0.00022191,3]
[329754563,1718649084599,-310.11577649,0.00022465,3]
[329754564,1718649084609,-1730.08,0.00022465,3]
[329754565,1718649084619,-549.51730518,0.00022465,3]
[329754566,1718649084629,-704.56,0.00022465,3]
[329754567,1718649084640,-3621.51,0.00022465,3]
[329754568,1718649084651,-500.0,0.00022465,3]
[329754569,1718649084661,-653.33,0.00022465,3]
[329754570,1718649084672,-625.32,0.00022465,3]
[329754571,1718649084682,-500.0,0.00022465,3]
[329754572,1718649084692,-1108.2,0.00022465,3]
[329754573,1718649084702,-500.0,0.00022465,3]
[329754574,1718649084713,-2523.51,0.00022465,3]
[329754575,1718649084724,-500.0,0.00022465,3]
[329754576,1718649084734,-948.23,0.00022465,3]
[329754577,1718649084743,-1244.01773754,0.00022465,3]
[329754578,1718649084757,-203.96226246,0.00022465,3]
[329754579,1718649084766,-952.04,0.00022465,3]
[329754580,1718649084776,-500.0,0.00022465,3]
[329754581,1718649084786,-500.0,0.00022465,3]
[329754582,1718649084798,-503.1816419,0.00022465,3]
[329754583,1718649084807,-251.4170329,0.00022465,3]
[329754584,1718649084817,-500.0,0.00022465,3]
[329754585,1718649084826,-675.47,0.00022465,3]
[329754586,1718649084837,-500.0,0.00022465,3]
[329754587,1718649084847,-624.58,0.00022465,3]
[329754588,1718649084858,-939.82,0.00022465,3]
[329754589,1718649084868,-500.0,0.00022465,3]
[329754590,1718649084878,-500.0,0.00022465,3]
[329754591,1718649084888,-744.17,0.00022465,3]
[329754592,1718649084899,-592.76,0.00022465,3]
[329754593,1718649084912,-500.0,0.00022465,3]
[329754594,1718649084924,-500.0,0.00022465,3]
[329754595,1718649084934,-270.16151963,0.00022465,3]
[329754596,1718649084944,-749.66,0.00022465,3]
[329754597,1718649084956,-588.68,0.00022465,3]
[329754598,1718649084965,-500.0,0.00022465,3]
[329754599,1718649084975,-127.58820244,0.00022465,3]
[329754600,1718649084988,-1591.44179756,0.00022465,3]
[329754601,1718649085001,-151.0,0.00022465,7]
[329754602,1718649085011,-151.0,0.00022465,7]
[329754603,1718649085021,-500.0,0.00022465,3]
[329754604,1718649085031,-500.0,0.00022465,3]
[329754605,1718649085041,-616.57384125,0.00022465,3]
[329754606,1718649085054,-205.60764058,0.00022465,3]
[329754607,1718649085066,-294.39235942,0.00022465,3]
[329754608,1718649085076,-546.82,0.00022465,3]
[329754609,1718649085086,-158.8531997,0.00022465,3]
[329754610,1718649085099,-251.29351,0.00022465,3]
[329754611,1718649086479,-150.0,0.00021778,2]
[329754612,1718649086489,-150.0,0.00021788,2]
[329754613,1718649086498,-466.04831259,0.00021816,2]
[329754614,1718649086508,-296.20867588,0.00021819,2]
[329754615,1718649086517,-994.44877483,0.00021823,2]
[329754616,1718649086526,-244.39503436,0.00021917,2]
[329754617,1718649086538,-255.60496564,0.00021917,2]
[329754618,1718649086550,-317.82517201,0.00021917,2]
[329754619,1718649086562,-182.17482799,0.00021917,2]
[329754620,1718649086571,-423.50281788,0.00021917,2]
[329754621,1718649086583,-76.49718212,0.00021917,2]
[329754622,1718649086592,-500.0,0.00021917,2]
[329754623,1718649086602,-150.0,0.00021941,2]
[329754624,1718649086611,-150.0,0.00021959,2]
[329754625,1718649086621,-500.0,0.00022191,3]
[329754626,1718649086632,-500.0,0.00022191,3]
[329754627,1718649086641,-500.0,0.00022191,3]
[329754628,1718649086650,-89.8532903,0.00022465,3]
[329754629,1718649086660,-563.54,0.00022465,3]
[329754630,1718649086669,-786.79,0.00022465,3]
[329754631,1718649086678,-756.89,0.00022465,3]
[329754632,1718649086687,-551.6356971,0.00022465,3]
[329754633,1718649086697,-738.16,0.00022465,3]
[329754634,1718649086708,-500.0,0.00022465,3]
[329754635,1718649086717,-658.73,0.00022465,3]
[329754636,1718649086726,-613.75,0.00022465,3]
[329754637,1718649086735,-623.51,0.00022465,3]
[329754638,1718649086745,-629.52,0.00022465,3]
[329754639,1718649086754,-669.95,0.00022465,3]
[329754640,1718649086763,-3069.84,0.00022465,3]
[329754641,1718649086772,-745.13,0.00022465,3]
[329754642,1718649086781,-500.0,0.00022465,3]
[329754643,1718649086790,-388.54290934,0.00022465,3]
[329754644,1718649086802,-500.0,0.00022465,3]
[329754645,1718649086811,-1008.1,0.00022465,3]
[329754646,1718649086820,-915.76,0.00022465,3]
[329754647,1718649086829,-500.0,0.00022465,3]
[329754648,1718649086838,-550.66,0.00022465,3]
[329754649,1718649086847,-571.38,0.00022465,3]
[329754650,1718649086856,-793.3,0.00022465,3]
[329754651,1718649086865,-500.0,0.00022465,3]
[329754652,1718649086875,-500.0,0.00022465,3]
[329754653,1718649086884,-500.0,0.00022465,3]
[329754654,1718649086894,-500.0,0.00022465,3]
[329754655,1718649086904,-500.0,0.00022465,3]
[329754656,1718649086918,-1134.91,0.00022465,3]
[329754657,1718649086928,-500.0,0.00022465,3]
[329754658,1718649086937,-500.0,0.00022465,3]
[329754659,1718649086948,-1740.43,0.00022465,3]
[329754660,1718649086960,-906.41,0.00022465,3]
[329754661,1718649086969,-500.0,0.00022465,3]
[329754662,1718649086979,-500.0,0.00022465,3]
[329754663,1718649086989,-949.59,0.00022465,3]
[329754664,1718649086998,-1394.69,0.00022465,3]
[329754665,1718649087008,-500.0,0.00022465,3]
[329754666,1718649087017,-500.0,0.00022465,3]
[329754667,1718649087027,-917.42,0.00022465,3]
[329754668,1718649087036,-500.0,0.00022465,3]
[329754669,1718649087045,-500.0,0.00022465,3]
[329754670,1718649087059,-500.0,0.00022465,3]
[329754671,1718649087069,-690.8,0.00022465,3]
[329754672,1718649087079,-1717.06,0.00022465,3]
[329754673,1718649087088,-500.0,0.00022465,3]
[329754674,1718649087098,-1023.69,0.00022465,3]
[329754675,1718649087107,-500.0,0.00022465,3]
[329754676,1718649087117,-500.0,0.00022465,3]
[329754677,1718649087126,-500.0,0.00022465,3]
[329754678,1718649087136,-500.0,0.00022465,3]
[329754679,1718649087145,-500.0,0.00022465,3]
[329754680,1718649087154,-569.38,0.00022465,3]
[329754681,1718649087172,-80.36819572,0.00022465,3]
[329754682,1718649087204,-354.37716682,0.00022465,3]
[329754683,1718649087272,-65.25463746,0.00022465,3]
[329754684,1718649087293,-355.36572692,0.00022465,3]
[329754685,1718649087317,-144.63427308,0.00022465,3]
[329754686,1718649087533,-269.72572692,0.00022465,3]
[329754687,1718649087545,-326.22427308,0.00022465,3]
[329754688,1718649087555,-858.51,0.00022465,3]
[329754689,1718649087565,-1195.99,0.00022465,3]
[329754690,1718649087573,-2302.61701529,0.00022465,3]
[329754691,1718649087584,-167.50298471,0.00022465,3]
[329754692,1718649087594,-370.88827501,0.00022465,3]
[329754693,1718649087603,-396.33727776,0.00022465,3]
[329754694,1718649087623,-500.0,0.00021917,2]
[329754695,1718649087633,-440.90272224,0.00022465,3]
[329754696,1718649087642,-143.77237359,0.00022465,3]
[329754697,1718649087653,-356.22762641,0.00022465,3]
[329754698,1718649087662,-500.0,0.00022465,3]
[329754699,1718649087671,-752.66,0.00022465,3]
[329754700,1718649087680,-500.0,0.00022465,3]
[329754701,1718649087689,-507.02090213,0.00022465,3]
[329754702,1718649087701,-276.26909787,0.00022465,3]
[329754703,1718649087709,-500.0,0.00022465,3]
[329754704,1718649087718,-1102.68,0.00022465,3]
[329754705,1718649087728,-1528.53,0.00022465,3]
[329754706,1718649087738,-1031.98,0.00022465,3]
[329754707,1718649087746,-500.0,0.00022465,3]
[329754708,1718649087755,-30.47090213,0.00022465,3]
[329754709,1718649087771,-469.52909787,0.00022465,3]
[329754710,1718649087780,-473.39465049,0.00022465,3]
[329754711,1718649087791,-26.60534951,0.00022465,3]
[329754712,1718649087803,-500.0,0.00022465,3]
[329754713,1718649087811,-205.64718616,0.00022465,3]
[329754714,1718649087822,-335.49281384,0.00022465,3]
[329754715,1718649087831,-2310.99,0.00022465,3]
[329754716,1718649087840,-887.74,0.00022465,3]
[329754717,1718649087849,-540.93,0.00022465,3]
[329754718,1718649087857,-82.22811629,0.00022465,3]
[329754719,1718649087869,-667.11188371,0.00022465,3]
[329754720,1718649087878,-500.0,0.00022465,3]
[329754721,1718649087888,-500.0,0.00022465,3]
[329754722,1718649087897,-500.0,0.00022465,3]
[329754723,1718649087908,-500.0,0.00022465,3]
[329754724,1718649087921,-899.88,0.00022465,3]
[329754725,1718649087930,-500.0,0.00022465,3]
[329754726,1718649087941,-500.0,0.00022465,3]
[329754727,1718649087951,-500.0,0.00022465,3]
[329754728,1718649087960,-500.0,0.00022465,3]
[329754729,1718649087969,-391.31012768,0.00022465,3]
[329754730,1718649087981,-502.77987232,0.00022465,3]
[329754731,1718649087990,-500.0,0.00022465,3]
[329754732,1718649088001,-615.42,0.00022465,3]
[329754733,1718649088010,-1073.04,0.00022465,3]
[329754734,1718649088020,-500.0,0.00022465,3]
[329754735,1718649088030,-500.0,0.00022465,3]
[329754736,1718649088039,-500.0,0.00022465,3]
[329754737,1718649088051,-281.23486698,0.00022465,3]
[329754743,1718649180143,160.52,0.00021589,30]
[329754750,1718649737782,160.52,0.00021589,30]
[329754752,1718650005542,-529.20485847,0.0001259,2]
[329754753,1718650005562,-328.23189261,0.00012591,2]
[329754754,1718650005583,-529.20485847,0.00012592,2]
[329754755,1718650005603,-529.20485847,0.00012592,2]
[329754756,1718650005624,-1141.89204243,0.000126,2]
[329754757,1718650005644,-397.89000003,0.0001298,2]
[329754758,1718650005666,-219.86,0.0001389,3]
[329754759,1718650005687,-172.7162141,0.00013904,2]
[329754760,1718650005708,-326.41929213,0.00013904,2]
[329754761,1718650005729,-3982.51753938,0.00013904,2]
[329754762,1718650005756,-482.72,0.00013956,2]
[329754763,1718650005776,-604.63206474,0.00013999,2]
[329754764,1718650005799,-755.50637917,0.00013999,2]
[329754765,1718650058814,2555.49409125,0.00010499,2]
[329754766,1718650060410,1057.0,0.000181,10]
[329754767,1718650076824,2555.49409125,0.00010499,2]
[329754768,1718650096818,2555.49409125,7.874e-05,2]
[329754769,1718650098857,958.68763856,9.974e-05,2]
[329754770,1718650100774,290.13912195,0.00010499,2]
[329754771,1718650101071,363.30221515,0.00010499,2]
[329754772,1718650101367,552.04753878,0.00010499,2]
[329754773,1718650103844,348.27605979,0.00010499,2]
[329754774,1718650104330,1364.80333341,0.00010499,2]
[329754775,1718650114536,290.13912195,0.00010499,2]
[329754776,1718650114856,958.68763856,9.974e-05,2]
[329754777,1718650114902,363.30221515,0.00010499,2]
[329754778,1718650116839,2555.49409125,7.874e-05,2]
[329754779,1718650119287,180.86403131,0.00010499,2]
[329754780,1718650119376,552.04753878,0.00010499,2]
[329754781,1718650120350,1364.80333341,0.00010499,2]
[329754782,1718650125046,375.54107673,0.00010499,2]
[329754783,1718650130985,363.30221515,0.00010499,2]
[329754784,1718650132565,290.13912195,0.00010499,2]
[329754785,1718650135036,958.68763856,9.974e-05,2]
[329754786,1718650135384,180.86403131,0.00010499,2]
[329754787,1718650136336,591.65632647,0.00010499,2]
[329754788,1718650136908,2555.49409125,7.874e-05,2]
[329754789,1718650137362,555.31905225,0.00010499,2]
[329754790,1718650149183,251.23413843,0.00010499,2]
[329754791,1718650150875,958.68763856,9.974e-05,2]
[329754792,1718650151300,180.86403131,0.00010499,2]
[329754793,1718650152538,376.11287678,0.00010499,2]
[329754794,1718650156820,330.03283136,7.874e-05,2]
[329754795,1718650171295,180.86403131,0.00010499,2]
[329754796,1718650172868,912.54427873,9.974e-05,2]
[329754797,1718650193296,201.02491695,0.00010499,2]
[329754808,1718650234863,-328.23189261,0.00012489,2]
[329754809,1718650234872,-342.68810739,0.0001249,2]
[329754810,1718650234900,-186.03619261,0.0001249,2]
[329754811,1718650234909,-2100.0,0.000136,4]
[329754812,1718650234919,-3869.82251785,0.000137,5]
[329754813,1718650234930,-430.17748215,0.000137,5]
[329754814,1718650234939,-6500.0,0.000138,5]
[329754815,1718650234948,-173.84,0.0001389,2]
[329754816,1718650234957,-2824.95183753,0.000139,5]
[329754817,1718650234969,-5775.04816247,0.000139,5]
[329754818,1718650234978,-161.81686419,0.00013904,2]
[329754819,1718650234991,-273.23185594,0.00013904,2]
[329754820,1718650235000,-326.41929211,0.00013904,2]
[329754821,1718650235010,-412.38542459,0.00013998,2]
[329754822,1718650235020,-120.14805358,0.00013999,2]
[329754823,1718650235029,-313.32707212,0.00014,2]
[329754824,1718650235041,-2360.47515999,0.00014,2]
[329754825,1718650235052,-465.83281295,0.00014,2]
[329754826,1718650235063,-7754.62903657,0.00014,2]
[329754827,1718650235074,-674.44896287,0.00014,2]
[329754828,1718650235101,-383.59999996,0.00014,2]
[329754832,1718650235225,-5151.0,0.00014,2]
[329754833,1718650235239,-7987.01424638,0.00014,2]
[329754834,1718650235253,-964208.9578582,0.00014,2]
[329754868,1718650240076,-24789.43516564,0.00014,2]
[329754869,1718650240088,-128317.955629,0.00014,2]
[329754870,1718650240100,-1609.9999999,0.00014,2]
[329754871,1718650240112,-73480.0,0.00014,2]
[329754872,1718650240196,-532.609884,0.00014,2]
[329754873,1718650240322,-866.13556849,0.00014,2]
[329754900,1718650240654,1422.89,0.000275,120]
[329754901,1718650240695,-264881.49053729,0.00014,2]
[329754902,1718650240706,-33068.07682968,0.00014,2]
[329754903,1718650240718,-20044.07468385,0.00014,2]
[329754904,1718650241888,-653.46140955,0.00014,2]
[329754905,1718650242081,-636.07016865,0.00014,2]
[329754906,1718650242092,-657.87442602,0.00014,2]
[329754907,1718650242103,-288.40183904,0.00014,2]
[329754908,1718650242167,-1900.91727116,0.00014,2]
[329754909,1718650242238,-844.96821136,0.00014,2]
[329754910,1718650242251,-1047.1115,0.00014,2]
[329754915,1718650243250,-3273.82162343,0.00014,2]
[329754916,1718650243262,-1775.0,0.00014,2]
[329754917,1718650243641,-2865.03074225,0.00014,2]
[329754918,1718650243653,-1218.52497915,0.00014,2]
[329754919,1718650243738,-310.80796072,0.00014,2]
[329754920,1718650243794,-549298.34865567,0.00014,2]
[329754921,1718650243806,-7248.24303825,0.00014,2]
[329754922,1718650243856,-948443.21623834,0.00014,2]
[329754923,1718650243865,-150.99,0.00014004,2]
[329754924,1718650243874,-197.67578136,0.00014104,2]
[329754925,1718650243884,-499.99,0.00014304,2]
[329754926,1718650243893,-171.91,0.00014421,2]
[329754927,1718650243902,-163.4,0.00014619,2]
[329754928,1718650243911,-161.81686416,0.00015406,2]
[329754929,1718650243921,-197.67578133,0.00015755,2]
[329754930,1718650243931,-2318.96,0.00015874,2]
[329754931,1718650243940,-2268.77,0.00015874,2]
[329754932,1718650243950,-458.58,0.00016369,2]
[329754933,1718650243960,-161.81686416,0.00016907,2]
[329754934,1718650243969,-197.67578133,0.00017406,2]
[329754935,1718650243979,-2804.96,0.00017651,2]
[329754936,1718650243988,-446.94,0.00017836,2]
[329754937,1718650244192,-500.0,0.00017882,2]
[329754938,1718650244203,-250.0,0.00017932,2]
[329754939,1718650244213,-1000.0,0.00017956,2]
[329754940,1718650244223,-23890.0,0.00017971,2]
[329754941,1718650244234,-554.21,0.00018246,2]
[329754942,1718650244243,-709.0,0.000183,2]
[329754943,1718650244254,-161.81686416,0.00018409,2]
[329754944,1718650244264,-2268.77,0.00018614,2]
[329754945,1718650244274,-458.58,0.00018633,2]
[329754946,1718650244283,-273.23185593,0.00018683,2]
[329754947,1718650244293,-197.67578133,0.00019057,2]
[329754948,1718650244303,-195.88,0.00019289,2]
[329754949,1718650244314,-326.41929211,0.00019505,2]
[329754950,1718650244328,-161.81686416,0.0001991,2]
[329754951,1718650244338,-215.48386509,0.0002,2]
[329754952,1718650244349,-5186.30857968,0.0002,2]
[329754953,1718650244359,-226.83513534,0.000201,2]
[329754954,1718650244368,-1000.0,0.000202,2]
[329754955,1718650244379,-195.88,0.00020253,2]
[329754956,1718650244390,-197.67578133,0.00020707,2]
[329754957,1718650244402,-3290.0,0.000208,5]
[329754958,1718650244412,-1302.76719431,0.00020819,2]
[329754959,1718650244421,-458.58,0.00020897,2]
[329754960,1718650244431,-1009.0,0.00021,3]
[329754961,1718650244441,-1000.0,0.00021,3]
[329754962,1718650244450,-757.0,0.00021,3]
[329754963,1718650244460,-1003.0,0.00021,3]
[329754964,1718650244469,-195.88,0.00021218,2]
[329754965,1718650244479,-2268.77,0.00021354,2]
[329754966,1718650244489,-161.81686416,0.00021412,2]
[329754967,1718650244500,-151.0,0.00021446,2]
[329754968,1718650244509,-1000.0,0.000215,3]
[329754969,1718650244519,-1000.0,0.000215,3]
[329754970,1718650244528,-948.6865,0.00021545,2]
[329754971,1718650244537,-6404.6859371,0.00021589,2]
[329754972,1718650244547,-4619.52597616,0.00021589,2]
[329754973,1718650244557,-4204.2218,0.00021617,2]
[329754974,1718650244566,-383.5341,0.00021617,2]
[329754975,1718650244576,-245000.0,0.00021645,2]
[329754976,1718650244586,-1792.0,0.00021702,2]
[329754977,1718650244596,-500.0,0.00021717,2]
[329754978,1718650244605,-10800.0,0.000218,7]
[329754979,1718650244614,-155.0,0.00021815,2]
[329754980,1718650244624,-500.0,0.00021815,2]
[329754981,1718650244633,-1160.01707378,0.00021816,2]
[329754982,1718650244642,-10000.0,0.00021817,2]
[329754983,1718650244651,-1000.0,0.00021817,2]
[329754984,1718650244661,-441.5783,0.00021817,2]
[329754985,1718650244670,-886.52370142,0.00021891,2]
[329754986,1718650244679,-162.44872148,0.00021893,19]
[329754987,1718650244689,-2100.0,0.000219,7]
[329754988,1718650244699,-219.28826757,0.00021917,2]
[329754989,1718650244708,-500.0,0.00021917,2]
[329754990,1718650244717,-500.0,0.00021917,2]
[329754991,1718650244726,-284.74613112,0.00021917,2]
[329754992,1718650244736,-500.0,0.00021917,2]
[329754993,1718650244747,-500.0,0.00021917,2]
[329754994,1718650244756,-649.45373699,0.00021917,2]
[329754995,1718650244765,-500.0,0.00021917,2]
[329754996,1718650244775,-500.0,0.00021917,2]
[329754997,1718650244784,-529.87,0.00021917,2]
[329754998,1718650244793,-500.0,0.00021917,2]
[329754999,1718650244805,-516.67540439,0.00021917,2]
[329755000,1718650244814,-500.0,0.00021917,2]
[329755001,1718650244823,-500.0,0.00021917,2]
[329755002,1718650244833,-598.69,0.00021917,2]
[329755003,1718650244842,-500.0,0.00021917,2]
[329755004,1718650244852,-500.0,0.00021917,2]
[329755005,1718650244861,-500.0,0.00021917,2]
[329755006,1718650244870,-559.68,0.00021917,2]
[329755007,1718650244879,-500.0,0.00021917,2]
[329755008,1718650244888,-500.0,0.00021917,2]
[329755009,1718650244898,-500.0,0.00021917,2]
[329755010,1718650244907,-597.46505599,0.00021917,2]
[329755011,1718650244917,-500.0,0.00021917,2]
[329755012,1718650244927,-500.0,0.00021917,2]
[329755013,1718650244936,-543.0,0.00021917,2]
[329755014,1718650244946,-500.0,0.00021917,2]
[329755015,1718650244955,-500.0,0.00021917,2]
[329755016,1718650244965,-565.04,0.00021917,2]
[329755017,1718650244974,-500.0,0.00021917,2]
[329755018,1718650244984,-500.0,0.00021917,2]
[329755019,1718650244993,-500.0,0.00021917,2]
[329755020,1718650245004,-500.0,0.00021917,2]
[329755021,1718650245014,-920.14,0.00021917,2]
[329755022,1718650245024,-500.0,0.00021917,2]
[329755023,1718650245035,-500.0,0.00021917,2]
[329755024,1718650245044,-500.0,0.00021917,2]
[329755025,1718650245053,-500.0,0.00021917,2]
[329755026,1718650245064,-500.0,0.00021917,2]
[329755027,1718650245073,-515.53,0.00021917,2]
[329755028,1718650245083,-500.0,0.00021917,2]
[329755029,1718650245092,-500.0,0.00021917,2]
[329755030,1718650245102,-500.0,0.00021917,2]
[329755031,1718650245112,-674.42,0.00021917,2]
[329755032,1718650245121,-512.26,0.00021917,2]
[329755033,1718650245131,-500.0,0.00021917,2]
[329755034,1718650245140,-500.0,0.00021917,2]
[329755035,1718650245149,-747.76,0.00021917,2]
[329755036,1718650245159,-500.0,0.00021917,2]
[329755037,1718650245169,-500.0,0.00021917,2]
[329755038,1718650245179,-500.0,0.00021917,2]
[329755039,1718650245188,-695.23,0.00021917,2]
[329755040,1718650245198,-500.0,0.00021917,2]
[329755041,1718650245208,-937.69,0.00021917,2]
[329755042,1718650245218,-500.0,0.00021917,2]
[329755043,1718650245228,-500.0,0.00021917,2]
[329755044,1718650245238,-500.0,0.00021917,2]